Cogmind - Beta 15 @@@ ROGUE MODE // 2025.07.07 @ 22:22:13 Player: Skysub Result: Smashed by cave-in Performance ------------- Evolutions (8) 4000 Regions Visited (24) 4800 Robots Destroyed (111) 555 Value Destroyed (3911) 3911 Prototype IDs (76) 1520 Alien Tech Used (13) 2600 Bonus (17235) 17235 TOTAL SCORE: 34621 Bonus ------- Triggered Max Security 1000 High Alert Combat Kills 88 Follower Combat Kills 257 Forged Quantum Companion 1000 Registered with UFD 300 Met Optimus in HQ 500 Met Imprinter 300 Met Zhirov 300 Met Warlord at Base 500 MAIN.C Attacked Warlord 500 Found Hidden Lab 3000 Used Core Reset Matrix 3000 Pursued by Intercept 1500 Integrated Exoskeleton 5000 Friendly Fire -10 Cogmind --------- Core Integrity 0/1450 Matter 155/425 Energy 290/290 System Corruption 0% Temperature Cool (0) Movement Walking (30) +NEM 1 Location -2/Section 7 Parts ------- > --- POWER (1) -------- Light Quantum Reactor > --- PROPULSION (3) --- Sigix Exoskeleton > --- UTILITY (3) ------ (None) > --- WEAPON (2) ------- Sigix Sheargun Quantum Companion > --- INVENTORY (5) ---- Advanced Melee Analysis Suite Microwarp Drive Peak State ------------ > --- POWER ------------ Light Quantum Reactor > --- PROPULSION ------- Sigix Exoskeleton > --- UTILITY ---------- Microwarp Drive > --- WEAPON ----------- Sigix Sheargun Quantum Companion > --- INVENTORY -------- Nanoactuators Advanced Transmission Jammer High-powered Transdimensional Reconstructor Terrabomb Sigix Sheargun [Rating: 242] Favorites ----------- Power Light Angular Momentum Engine Engine Light Angular Momentum Engine Power Core Nuclear Core Reactor Mini Fusion Reactor Propulsion Cooled Nuclear Pulse Thruster Treads Light Treads Leg Arachnoskeleton Wheel Armored Wheel Hover Unit Antigrav System Flight Unit Cooled Nuclear Pulse Thruster Utility Advanced Signal Interpreter Device Structural Scanner Storage Large Storage Unit Processor Advanced Signal Interpreter Hackware Hacking Suite Protection Enhanced Scrap Shield Artifact Microwarp Drive Weapon Companion Sword Energy Gun Subdweller Laser Energy Cannon Vortex Driver Ballistic Gun Assault Rifle Launcher Grenade Launcher Special Weapon Remote Datajack Slashing Weapon Companion Sword Build | -11 -10 -10 -8 -6 -6 -6 -6 -5 -5 -5 -5 -5 -4 -4 -4 -4 -4 -3 -3 -3 -3 -2 -2 -2 ------- Run | Yrd Mat Sub Scr Fac Low Low Zio Pro Fac Upp Upp Zhi Pro Fac Upp Upp War Pro Res Arm Lab Res Qua Sec Slots Evolved 16 | . . . . 8 . . . . 2 . . . . 2 . . . . 2 . . 2 . . Power 1 | . . . . 1 . . . . . . . . . . . . . . . . . . . . Propulsion 4 | . . . . 1 . . . . . . . . . 2 . . . . . . . 1 . . Utility 11 | . . . . 6 . . . . 2 . . . . . . . . . 2 . . 1 . . Weapon . | . . . . . . . . . . . . . . . . . . . . . . . . . Parts Attached 154 | 6 2 18 7 8 2 . 1 3 22 3 2 5 1 8 . 1 2 1 12 16 9 11 10 4 Power 19 | 1 . 3 1 1 . . . . 4 . . . . . . . . . 3 1 1 1 2 1 Engine 10 | 1 . 3 1 . . . . . 2 . . . . . . . . . 1 . . . 2 . Core 5 | . . . . 1 . . . . 2 . . . . . . . . . 2 . . . . . Reactor 4 | . . . . . . . . . . . . . . . . . . . . 1 1 1 . 1 Propulsion 44 | 2 . 7 2 1 . . . . 6 1 2 3 . 3 . 1 . . 3 5 1 5 2 . Treads 4 | 2 . 1 1 . . . . . . . . . . . . . . . . . . . . . Leg 4 | . . . . 1 . . . . 3 . . . . . . . . . . . . . . . Wheel 7 | . . 6 1 . . . . . . . . . . . . . . . . . . . . . Hover 3 | . . . . . . . . . . . . . . . . . . . . 2 . . 1 . Flight 26 | . . . . . . . . . 3 1 2 3 . 3 . 1 . . 3 3 1 5 1 . Utility 76 | 1 2 . 2 6 2 . 1 3 12 2 . 2 1 5 . . . 1 6 10 6 5 6 3 Device 41 | . 1 . . 3 1 . 1 2 3 2 . . . 4 . . . 1 5 8 2 5 2 1 Storage 5 | 1 1 . 2 . . . . . . . . . . . . . . . . . 1 . . . Processor 14 | . . . . 2 . . . . 8 . . . . 1 . . . . 1 . . . 2 . Hackware 6 | . . . . 1 . . . . 1 . . 1 . . . . . . . 1 1 . 1 . Protection 9 | . . . . . 1 . . 1 . . . 1 1 . . . . . . 1 2 . 1 1 Artifact 1 | . . . . . . . . . . . . . . . . . . . . . . . . 1 Weapon 15 | 2 . 8 2 . . . . . . . . . . . . . 2 . . . 1 . . . Energy Gun 1 | . . 1 . . . . . . . . . . . . . . . . . . . . . . Energy Cannon 1 | . . . . . . . . . . . . . . . . . 1 . . . . . . . Ballistic Gun 4 | 2 . 2 . . . . . . . . . . . . . . . . . . . . . . Ballistic Cannon . | . . . . . . . . . . . . . . . . . . . . . . . . . Launcher 3 | . . 3 . . . . . . . . . . . . . . . . . . . . . . Special Weapon 4 | . . 1 1 . . . . . . . . . . . . . 1 . . . 1 . . . Impact Weapon . | . . . . . . . . . . . . . . . . . . . . . . . . . Slashing Weapon 2 | . . 1 1 . . . . . . . . . . . . . . . . . . . . . Piercing Weapon . | . . . . . . . . . . . . . . . . . . . . . . . . . Special Melee Weapon . | . . . . . . . . . . . . . . . . . . . . . . . . . Unidentified Prototypes 36 | . . . 1 1 1 . 1 . 5 . . 3 . . . . 2 . . 8 9 1 1 3 Parts Lost 67 | . . 10 . . 1 . . 3 9 1 3 . . 5 . 1 . . 10 1 1 15 4 3 Power 14 | . . 2 . . . . . 1 3 . . . . 2 . . . . 2 . . 1 1 2 Propulsion 24 | . . 2 . . . . . . 2 1 2 . . 1 . 1 . . 3 1 1 9 1 . Utility 23 | . . . . . 1 . . 2 4 . 1 . . 2 . . . . 5 . . 5 2 1 Weapon 6 | . . 6 . . . . . . . . . . . . . . . . . . . . . . Highest Loss Streak 7 | . . 5 . . 1 . . 2 4 1 3 . . 2 . 1 . . 5 5 1 7 3 2 To Critical Strikes . | . . . . . . . . . . . . . . . . . . . . . . . . . Average Backups 7 | 1 5 7 5 11 14 14 13 11 7 3 3 3 4 3 4 4 4 4 3 4 4 4 4 3 Power . | . 1 . . . . 1 . . . . . . . . . . . . . . . . . . Propulsion . | . 1 . . 1 1 1 . . . . . . 1 . . . . . . . . . . . Utility 4 | . . 2 3 8 10 10 11 10 5 3 3 2 2 1 3 3 3 3 2 3 2 2 2 1 Weapon 1 | . 2 3 . . 1 1 . . . . . . . . . . . . . . . . . . Tool/Special . | . . . . . . . . . . . . . . . . . . . . . . . . . Unused Backups 35 | . . 2 17 2 3 . 4 . 1 1 . 1 . 1 . . . . . . . 1 1 1 Power 3 | . . . 3 . . . . . . . . . . . . . . . . . . . . . Propulsion 3 | . . . 1 . . . 1 . . . . . . . . . . . . . . . 1 . Utility 24 | . . 1 9 2 3 . 3 . 1 1 . 1 . 1 . . . . . . . 1 . 1 Weapon 5 | . . 1 4 . . . . . . . . . . . . . . . . . . . . . Tool/Special . | . . . . . . . . . . . . . . . . . . . . . . . . . Average Slot Usage (%) 70 | . 94 81 45 60 53 55 57 62 70 86 87 87 88 85 89 89 91 94 93 93 90 70 70 63 Engine 4 | . 14 8 4 5 5 5 5 2 2 . . . . 1 5 5 7 10 6 . . . . . Core 1 | . . . . 4 . . 2 5 4 4 5 5 5 4 . . . . 2 4 4 2 . . Treads 3 | . 28 7 3 . . . . . . . . . . . . . . . . . . . . . Leg 1 | . . . . 4 5 5 5 5 3 . . . . . . . . . . . . . . 5 Wheel 3 | . . 8 13 . . . . . . . . . . . . . . . . . . . . . Flight 5 | . . . . . . . . . 3 16 16 16 17 23 26 26 26 26 22 20 22 14 6 4 Device 11 | . 8 14 4 15 9 11 11 14 7 10 8 5 5 6 15 15 15 15 22 19 16 18 25 11 Storage 6 | . 14 14 11 5 5 5 5 5 3 . . . . . . . . . . . . . . . Processor 9 | . . . . 10 11 11 11 11 25 35 35 33 29 24 21 21 21 21 19 23 22 14 14 9 Hackware 4 | . . . . 4 5 5 5 5 10 11 11 12 17 13 10 10 10 10 9 9 9 9 9 4 Protection 2 | . . . . . 4 5 5 4 4 . 1 5 5 5 5 5 5 5 2 3 4 2 2 1 Energy Gun 1 | . . 7 1 . . . . . . . . . . . . . . . . . . . . 5 Ballistic Gun 4 | . 28 15 1 . . . . . . . . . . . . . . . . . . . . . Slashing Weapon 4 | . . 3 4 5 5 5 5 5 5 5 5 5 5 5 5 5 5 5 4 4 4 4 4 7 Peak Build Rating 242 | 6 7 16 28 75 76 76 81 81 97 80 78 95 90 103 97 97 101 97 121 134 145 143 129 242 Average Rating 58 | 4 6 9 10 68 72 76 78 73 82 76 76 80 90 97 97 94 93 96 105 122 132 113 117 180 On Entrance 76 | . 6 7 16 28 70 76 76 81 70 80 78 75 90 90 97 97 92 95 97 95 124 137 95 129 Naked Turns 121 | . . . 121 . . . . . . . . . . . . . . . . . . . . . Heaviest Build 56 | 14 20 24 37 46 49 49 56 56 48 15 15 13 16 17 15 15 17 17 22 29 27 30 24 35 Greatest Support 60 | 40 40 40 20 50 50 50 50 50 50 15 15 18 18 41 31 22 18 28 29 32 49 32 33 60 Greatest Overweight (x) 7 | . . 6 7 3 . . 1 1 1 4 1 2 . . . . . . . 1 . 1 1 . Average Overweight (x) . | . . 1 . . . . . . . . . . . . . . . . . . . . . . Largest Inventory Capacity 15 | 8 10 10 15 15 15 15 15 15 15 5 5 5 5 5 5 5 5 5 5 5 5 5 5 5 Average Capacity 10 | 6 9 10 12 13 15 15 15 15 11 5 5 5 5 5 5 5 5 5 5 5 5 5 5 5 Most Carried 15 | 2 8 10 15 15 15 15 15 15 12 5 5 5 5 5 5 5 5 5 5 5 5 5 5 5 Average Carried 8 | 1 5 8 6 12 14 15 14 12 8 4 4 4 5 4 5 5 5 4 3 4 4 4 4 3 Final Capacity 15 | 8 10 10 15 15 15 15 15 15 5 5 5 5 5 5 5 5 5 5 5 5 5 5 5 5 Final Carried 15 | 2 8 10 15 15 15 15 15 12 5 5 4 5 5 5 5 5 5 5 4 5 5 3 4 4 Class Distribution -------------------- 54% | Mutant 11% | Hacker-Ninja 10% | Hacker-Scout 5% | Assassin 5% | Hacker-Mutant 5% | Scavenger-Mutant Dominant Class ---------------- Mutant | -10/Materials Mutant | -10/Subcaves Mutant | -8/Scraptown Assassin | -6/Factory Mutant | -6/Lower Caves Mutant | -6/Lower Caves Mutant | -6/Zion Mutant | -5/Proximity Caves Hacker-Mutant | -5/Factory Hacker-Scout | -5/Upper Caves Hacker-Scout | -5/Upper Caves Hacker-Scout | -5/Zhirov Hacker-Scout | -4/Proximity Caves Hacker-Scout | -4/Factory Hacker-Scout | -4/Upper Caves Hacker-Scout | -4/Upper Caves Hacker-Scout | -4/Warlord Hacker-Ninja | -3/Proximity Caves Hacker-Ninja | -3/Research Hacker-Ninja | -3/Armory Hacker-Ninja | -3/Lab Hacker-Ninja | -2/Research Hacker-Ninja | -2/Quarantine Alien-Sigix | -2/Section 7 Resources | -11 -10 -10 -8 -6 -6 -6 -6 -5 -5 -5 -5 -5 -4 -4 -4 -4 -4 -3 -3 -3 -3 -2 -2 -2 ----------- Run | Yrd Mat Sub Scr Fac Low Low Zio Pro Fac Upp Upp Zhi Pro Fac Upp Upp War Pro Res Arm Lab Res Qua Sec Matter Collected 2880 | 225 146 519 40 180 70 27 . 50 188 107 20 . . 98 97 . . 40 155 206 309 75 211 117 Remotely . | . . . . . . . . . . . . . . . . . . . . . . . . . Salvage Created 4742 | . 217 364 . 279 83 87 . 193 664 99 75 . . 117 . 20 . . 259 246 316 1262 247 214 Parts 269 | . 22 32 . 21 5 5 . 8 25 8 5 . . 7 . 1 . . 24 16 18 40 21 11 Haulers Intercepted . | . . . . . . . . . . . . . . . . . . . . . . . . . Recyclers Shooed 1 | . . . . . . . . . . . . . . . . . . . . . . 1 . . Parts Field Recycled . | . . . . . . . . . . . . . . . . . . . . . . . . . Retrieved Matter . | . . . . . . . . . . . . . . . . . . . . . . . . . Parts Self-Destructed 69 | . . 14 . . 7 6 3 8 . 7 4 . . . 6 . . 14 . . . . . . Prevented 3 | . . . . . . 1 . . . . . . . . 2 . . . . . . . . . Kills | -11 -10 -10 -8 -6 -6 -6 -6 -5 -5 -5 -5 -5 -4 -4 -4 -4 -4 -3 -3 -3 -3 -2 -2 -2 ------- Run | Yrd Mat Sub Scr Fac Low Low Zio Pro Fac Upp Upp Zhi Pro Fac Upp Upp War Pro Res Arm Lab Res Qua Sec Combat Hostiles Destroyed 78 | . 6 18 . 6 3 1 . 4 8 4 3 . . 1 . 1 . . 3 3 4 9 3 1 Melee 50 | . . . . 6 3 1 . 4 8 4 3 . . 1 . 1 . . 3 3 3 8 2 . Guns 12 | . 6 6 . . . . . . . . . . . . . . . . . . . . . . Cannons 4 | . . . . . . . . . . . . . . . . . . . . . 1 1 1 1 AOE 12 | . . 12 . . . . . . . . . . . . . . . . . . . . . . Classes Destroyed 15 | . 4 2 . 1 1 1 . . 2 . . . . 1 . . . . 1 1 . . . 1 Worker 6 | . . . . . . . . . 3 . . . . . . . . . . . . 2 1 . Builder 8 | . 1 . . 1 . . . . . . . . . 1 . . . . 3 . . . 1 1 Tunneler 3 | . 2 . . . . . . . . . . . . . . . . . 1 . . . . . Recycler 7 | . . . . . . . . . 1 . . . . . . . . . . . . 5 . 1 Minesweeper 1 | . . . . . . 1 . . . . . . . . . . . . . . . . . . Operator 1 | . . . . . . . . . . . . . . 1 . . . . . . . . . . Watcher 7 | . . . . . . . . . 1 . . . . . . . . . 2 2 . 1 1 . Swarmer 31 | . 3 4 . 3 3 . . 2 3 4 3 . . . . 1 . . . 1 . 4 . . Cutter 3 | . . . . . . . . . . . . . . . . . . . 3 . . . . . Saboteur 1 | . . . . . . . . . . . . . . . . . . . . 1 . . . . Grunt 14 | . 3 . . . . 1 . . 4 . . . . . . . . . . . 3 3 . . Sentry 7 | . . 1 . 2 . . . 1 1 . . . . 1 . . . . . 1 . . . . Hunter 1 | . . . . . . . . . . . . . . . . . . . . . . . . 1 Programmer 5 | . . . . 1 . . . 1 . . . . . . . . . . . . . 2 1 . Tracker 2 | . . . . . . . . . . . . . . . . . . . . . . . 2 . Subdweller 13 | . . 13 . . . . . . . . . . . . . . . . . . . . . . Decomposer 1 | . . . . . 1 . . . . . . . . . . . . . . . . . . . Best Kill Streak 7 | . 7 6 . 3 2 2 . 2 4 4 3 . . 1 . 1 . . 4 1 4 5 2 1 Combat Bots Only 6 | . 6 6 . 3 2 1 . 2 4 4 3 . . 1 . 1 . . 3 1 4 4 2 1 Max Kills in Single Turn 3 | . 1 3 . 1 1 1 . 1 1 1 1 . . 1 . 1 . . 2 1 2 2 1 1 Gunslinging . | . . . . . . . . . . . . . . . . . . . . . . . . . Exploded 3 | . . 3 . . . . . . . . . . . . . . . . . . . . . . Melee 2 | . . . . 1 1 1 . 1 1 1 1 . . 1 . 1 . . 2 1 1 1 1 . Uniques/NPCs Destroyed 1 | . . . . . . . . . . . . . . . . . . . . . 1 . . . A5 (-3/Lab) Combat | -11 -10 -10 -8 -6 -6 -6 -6 -5 -5 -5 -5 -5 -4 -4 -4 -4 -4 -3 -3 -3 -3 -2 -2 -2 -------- Run | Yrd Mat Sub Scr Fac Low Low Zio Pro Fac Upp Upp Zhi Pro Fac Upp Upp War Pro Res Arm Lab Res Qua Sec Hostile Shots Fired 845 | . 28 62 . 37 26 7 . 26 103 12 22 . . 46 . 14 . 5 79 32 33 119 49 145 Missed 281 | . 7 20 . 14 7 2 . 10 34 9 8 . . 20 . 10 . 2 37 16 11 39 4 31 Deflected 9 | . . . . . . . . . . . . . . . . . . . . . 2 3 1 3 Hits 564 | . 21 42 . 23 19 5 . 16 69 3 14 . . 26 . 4 . 3 42 16 22 80 45 114 Melee 3 | . . . . . . . . . . . . . . . . . . . 3 . . . . . Projectile 561 | . 21 42 . 23 19 5 . 16 69 3 14 . . 26 . 4 . 3 39 16 22 80 45 114 AOE 6 | . . 1 . . . . . . . . . . . 3 . . . . 2 . . . . . Critical Strikes 11 | . . 1 . 2 . . . 1 2 . . . . 1 . . . . 2 . . 1 . 1 Actively Blocked 4 | . . . . . . . . . . . . . . . . . . . 2 . . 1 . 1 Part Disruptions 1 | . . . . . . . . . . . . . . 1 . . . . . . . . . . Damage Taken 10374 | . 191 1145 . 384 302 93 . 302 1328 46 208 . . 750 . 68 . 66 781 375 463 1593 718 1561 Core 2908 | . 32 163 . 107 39 . . 56 406 17 60 . . 262 . . . 44 205 64 25 594 216 618 Absorbed by Shields . | . . . . . . . . . . . . . . . . . . . . . . . . . Redirected to Shielding 27 | . . . . . . . . . 12 . . . . . . . . . . . . . 15 . Ignored by Resistances 1045 | . . . . . . . . . . . . . . . . . . . . . . . . 1045 Regen/Repaired (Parts) 483 | . . . . 9 . . . . . . . . . . . . 11 . . 77 . 386 . . Core Remaining (%) 65 | 100 . . 22 . . . . 76 . . . . 51 . . . . 73 . . 71 . . . Volleys Fired 65 | . 21 43 . . . . . . . . . . . . . . . . . . . . . 1 Largest 2 | . 2 2 . . . . . . . . . . . . . . . . . . . . . 1 Hottest 100 | . 40 100 . . . . . . . . . . . . . . . . . . . . . 100 Shots Fired 115 | . 42 72 . . . . . . . . . . . . . . . . . . . . . 1 Gun 99 | . 42 56 . . . . . . . . . . . . . . . . . . . . . 1 Cannon . | . . . . . . . . . . . . . . . . . . . . . . . . . Launcher 15 | . . 15 . . . . . . . . . . . . . . . . . . . . . . Special 1 | . . 1 . . . . . . . . . . . . . . . . . . . . . . Kinetic 93 | . 42 51 . . . . . . . . . . . . . . . . . . . . . . Thermal 10 | . . 10 . . . . . . . . . . . . . . . . . . . . . . Explosive 11 | . . 11 . . . . . . . . . . . . . . . . . . . . . . Electromagnetic . | . . . . . . . . . . . . . . . . . . . . . . . . . Slashing 1 | . . . . . . . . . . . . . . . . . . . . . . . . 1 Robot Hit Streak 16 | . 5 16 . . . . . . . . . . . . . . . . . . . . . . Robot Miss Streak 5 | . 5 1 . . . . . . . . . . . . . . . . . . . . . 1 Penetration Max . | . . . . . . . . . . . . . . . . . . . . . . . . . Secondary Targets 1 | . 1 . . . . . . . . . . . . . . . . . . . . . . . Max Gunslinging Chain 1 | . 1 . . . . . . . . . . . . . . . . . . . . . . . Autonomous 9 | . . . . . . . . . . . . . . . . . . . . 1 2 2 2 2 Shots Hit Robots 278 | . 19 58 . 12 10 6 . 12 30 4 7 . . 16 . 2 . . 17 17 16 35 9 8 Core Hits 135 | . 14 32 . 8 3 3 . 5 16 4 2 . . 3 . 1 . . 6 7 8 13 6 4 Critical Kills 1 | . . 1 . . . . . . . . . . . . . . . . . . . . . . Critical Parts Destroyed . | . . . . . . . . . . . . . . . . . . . . . . . . . Critical Strikes 7 | . . 1 . . . 2 . . 2 . . . . 2 . . . . . . . . . . Destroy 1 | . . 1 . . . . . . . . . . . . . . . . . . . . . . Melee Attacks 374 | . . 27 . 21 14 7 . 14 41 5 8 . 2 37 3 3 . . 29 31 28 51 19 34 Impact . | . . . . . . . . . . . . . . . . . . . . . . . . . Slashing 374 | . . 27 . 21 14 7 . 14 41 5 8 . 2 37 3 3 . . 29 31 28 51 19 34 Piercing . | . . . . . . . . . . . . . . . . . . . . . . . . . Sneak Attacks 29 | . . 1 . 3 1 1 . . 4 . . . . 1 . . . . 3 2 1 8 2 2 Combat Hostiles 4 | . . . . . . . . . . . . . . . . . . . . 2 1 1 . . Follow-up Attacks 4 | . . . . . 1 . . . . . . . . . . . . . 2 . . 1 . . Damage Inflicted 15333 | . 279 2162 . 584 482 255 . 501 1393 201 315 . . 768 . 95 . . 1137 1448 1304 2773 849 787 Guns 850 | . 255 595 . . . . . . . . . . . . . . . . . . . . . . Cannons 783 | . . . . . . . . . . . . . . . . . . . . 93 155 191 156 188 Explosions 1275 | . . 1275 . . . . . . . . . . . . . . . . . . . . . . Melee 12369 | . . 292 . 584 482 255 . 501 1393 201 315 . . 768 . 95 . . 1137 1323 1149 2582 693 599 Ramming 56 | . 24 . . . . . . . . . . . . . . . . . . 32 . . . . Kinetic 1169 | . 255 914 . . . . . . . . . . . . . . . . . . . . . . Thermal 131 | . . 131 . . . . . . . . . . . . . . . . . . . . . . Explosive 825 | . . 825 . . . . . . . . . . . . . . . . . . . . . . Electromagnetic . | . . . . . . . . . . . . . . . . . . . . . . . . . Impact . | . . . . . . . . . . . . . . . . . . . . . . . . . Slashing 12369 | . . 292 . 584 482 255 . 501 1393 201 315 . . 768 . 95 . . 1137 1323 1149 2582 693 599 Piercing . | . . . . . . . . . . . . . . . . . . . . . . . . . Phasic 783 | . . . . . . . . . . . . . . . . . . . . 93 155 191 156 188 Highest Corruption 5 | . . . . 5 5 5 5 . . . . . . 1 1 1 1 . . . 1 2 5 5 Average Corruption 3 | . . . . 4 5 5 5 . . . . . . 1 1 1 1 . . . 1 1 3 5 Corruption Purged . | . . . . . . . . . . . . . . . . . . . . . . . . . Corruption Blocked . | . . . . . . . . . . . . . . . . . . . . . . . . . Effects 53 | . . . . 3 18 11 3 . . . . . . . . . . . . . . 6 8 4 Message Errors 11 | . . . . . 3 1 . . . . . . . . . . . . . . . 3 3 1 Matter Fused 15 | . . . . 1 6 4 . . . . . . . . . . . . . . . 1 1 2 Heat Flow Errors 6 | . . . . 1 1 1 1 . . . . . . . . . . . . . . . 2 . Energy Discharges 9 | . . . . . 3 2 2 . . . . . . . . . . . . . . 1 . 1 Data Loss (minor) 10 | . . . . 1 4 2 . . . . . . . . . . . . . . . 1 2 . Alerts 2 | . . . . . 1 1 . . . . . . . . . . . . . . . . . . Overload Shots . | . . . . . . . . . . . . . . . . . . . . . . . . . Overflow Damage 1668 | . . 16 . 69 81 . . 3 96 . 44 . . 115 . 3 . . 425 12 . 468 155 181 Projectiles 94 | . . . . . . . . . . . . . . . . . . . . . . 12 52 30 Explosions 16 | . . 16 . . . . . . . . . . . . . . . . . . . . . . Melee 1558 | . . . . 69 81 . . 3 96 . 44 . . 115 . 3 . . 425 12 . 456 103 151 Knockbacks . | . . . . . . . . . . . . . . . . . . . . . . . . . Impact . | . . . . . . . . . . . . . . . . . . . . . . . . . Kinetic . | . . . . . . . . . . . . . . . . . . . . . . . . . Secondary . | . . . . . . . . . . . . . . . . . . . . . . . . . Self-Inflicted Damage 224 | . . 208 . . . . . . . . . . . . . . . . . 16 . . . . Shots 9 | . . 9 . . . . . . . . . . . . . . . . . . . . . . Rammed 7 | . 6 . . . . . . . . . . . . . . . . . . 1 . . . . Targets Rammed 7 | . 6 . . . . . . . . . . . . . . . . . . 1 . . . . Kicked . | . . . . . . . . . . . . . . . . . . . . . . . . . Crushed . | . . . . . . . . . . . . . . . . . . . . . . . . . Highest Temperature 259 | . . . . 259 83 183 173 . . . . . . 57 . . . . . . . 17 112 . Average Temperature 88 | . . . . 126 44 95 95 . . . . . . 43 . . . . . . . 13 55 . Received Heat Transfer 873 | . 36 144 . 18 . 45 . 18 354 . . . . 63 . . . . 27 36 42 45 9 36 Siege Activations . | . . . . . . . . . . . . . . . . . . . . . . . . . Martial Activations . | . . . . . . . . . . . . . . . . . . . . . . . . . Shielding Activations 1 | . . . . . . . . . 1 . . . . . . . . . . . . . . . Total Turns 8 | . . . . . . . . . 8 . . . . . . . . . . . . . . . Longest Duration 8 | . . . . . . . . . 8 . . . . . . . . . . . . . . . Robots Disrupted 3 | . . . . . . . . . . . . . . . . 1 . . . 1 . . . 1 Combat Hostiles 3 | . . . . . . . . . . . . . . . . 1 . . . 1 . . . 1 Robots Corrupted . | . . . . . . . . . . . . . . . . . . . . . . . . . Combat Hostiles . | . . . . . . . . . . . . . . . . . . . . . . . . . Parts Fried . | . . . . . . . . . . . . . . . . . . . . . . . . . Impact Corruptions . | . . . . . . . . . . . . . . . . . . . . . . . . . Robots Melted . | . . . . . . . . . . . . . . . . . . . . . . . . . Combat Hostiles . | . . . . . . . . . . . . . . . . . . . . . . . . . Parts Melted . | . . . . . . . . . . . . . . . . . . . . . . . . . Heat Transferred 150 | . . 150 . . . . . . . . . . . . . . . . . . . . . . Parts Sabotaged . | . . . . . . . . . . . . . . . . . . . . . . . . . Parts Stolen . | . . . . . . . . . . . . . . . . . . . . . . . . . Parts Stripped 4 | . . . . . . . . . . . . . . . . . . . . . . 4 . . Power Chain Reactions . | . . . . . . . . . . . . . . . . . . . . . . . . . Alert | -11 -10 -10 -8 -6 -6 -6 -6 -5 -5 -5 -5 -5 -4 -4 -4 -4 -4 -3 -3 -3 -3 -2 -2 -2 ------- Run | Yrd Mat Sub Scr Fac Low Low Zio Pro Fac Upp Upp Zhi Pro Fac Upp Upp War Pro Res Arm Lab Res Qua Sec Maximum Alert Level 5 | . . . . . . . . . . . . . . . . . . . 1 1 . . . 5 Low Security (%) 89 | 100 100 . . 100 . . . . 100 . . . . 100 . . . . 96 33 . 100 100 71 Level 1 7 | . . . . . . . . . . . . . . . . . . . 3 66 . . . . Level 2 . | . . . . . . . . . . . . . . . . . . . . . . . . . Level 3 . | . . . . . . . . . . . . . . . . . . . . . . . . . Level 4 . | . . . . . . . . . . . . . . . . . . . . . . . . . Level 5 . | . . . . . . . . . . . . . . . . . . . . . . . . . High Security . | . . . . . . . . . . . . . . . . . . . . . . . . . Max Security 2 | . . . . . . . . . . . . . . . . . . . . . . . . 28 Peak Influence 1678 | . 146 . . 60 . . . . 145 . . . . 89 . . . . 252 392 . 129 105 1678 Initial 132 | . . . . . . . . . . . . . . . . . . . 36 132 . . 38 56 Average 102 | . 50 . . 16 . . . . 33 . . . . 20 . . . . 76 231 . 44 59 510 Influence Increases 3915 | . 189 130 . 174 130 25 . 120 370 105 75 . . 299 . 110 . 105 496 502 60 512 252 261 Destroy 0b10 Robot/C 1420 | . 120 100 . 120 60 20 . 80 160 80 60 . . 20 . 20 . . 60 200 60 180 60 20 Destroy 0b10 Robot/NC 165 | . 15 . . 5 . 5 . . 25 . . . . 10 . . . . 30 10 . 40 15 10 Destroy Leader 254 | . 20 . . 40 10 . . 10 32 10 . . . 10 . . . . 14 44 . 32 22 10 Allied During Kill 77 | . . . . . . . . . . . . . . . . . . . . 77 . . . . Successful Hack 336 | . 3 . . 4 . . . . 6 . . . . 28 . . . . 117 61 . 56 53 8 Select Force Hacks 60 | . 30 . . . . . . . . . . . . . . . . . . . . 30 . . Disable Machine 180 | . . . . . . . . . . . . . . 15 . . . . . 30 . . 30 105 Destroy Structure 178 | . 1 . . 5 . . . . 12 . . . . 36 . . . . 20 20 . 39 12 33 Partial Spotted 165 | . . . . . . . . . 15 . . . . 30 . . . . 15 45 . 30 . 30 Lose Combat Pursuer 1080 | . . 30 . . 60 . . 30 120 15 15 . . 150 . 90 . 105 240 15 . 105 60 45 Influence Decreases 3798 | . 184 135 . 169 135 25 . 120 225 175 125 25 . 234 65 60 50 50 299 456 358 443 221 244 Entered New Map 688 | . . 3 . . 3 . . . . 55 15 25 . . 25 . 50 . 19 120 298 . 31 44 Time Decay 2505 | . 184 132 . 169 122 25 . 100 170 110 80 . . 184 40 50 . 50 170 246 60 313 150 150 Lost Part 495 | . . . . . 10 . . 20 55 10 30 . . 50 . 10 . . 100 10 . 130 40 30 Lost Ally 110 | . . . . . . . . . . . . . . . . . . . 10 80 . . . 20 Squads Dispatched 61 | . 1 . . 3 . . . . 9 . . . . 6 . . . . 2 5 . 10 4 21 Investigation 14 | . 1 . . . . . . . 4 . . . . 4 . . . . . . . 5 . . Extermination 10 | . . . . 1 . . . . 2 . . . . 1 . . . . 1 1 . 2 1 1 Reinforcement 13 | . . . . 2 . . . . . . . . . 1 . . . . 1 4 . . . 5 Assault 12 | . . . . . . . . . . . . . . . . . . . . . . . . 12 Garrison 3 | . . . . . . . . . 3 . . . . . . . . . . . . . . . Intercept 9 | . . . . . . . . . . . . . . . . . . . . . . 3 3 3 Searches Triggered . | . . . . . . . . . . . . . . . . . . . . . . . . . Construction Impeded 1 | . . . . 1 . . . . . . . . . . . . . . . . . . . . Haulers Reinforced . | . . . . . . . . . . . . . . . . . . . . . . . . . Active Scanning Responses . | . . . . . . . . . . . . . . . . . . . . . . . . . Cargo Convoy Interrupts . | . . . . . . . . . . . . . . . . . . . . . . . . . Stealth | -11 -10 -10 -8 -6 -6 -6 -6 -5 -5 -5 -5 -5 -4 -4 -4 -4 -4 -3 -3 -3 -3 -2 -2 -2 --------- Run | Yrd Mat Sub Scr Fac Low Low Zio Pro Fac Upp Upp Zhi Pro Fac Upp Upp War Pro Res Arm Lab Res Qua Sec Distress Signals 4 | . . . . . . . . . . . . . . 3 . . . . . 1 . . . . Communications Jammed 9 | . . . . . . . . . . . . . . . . . . . 3 1 . 5 . . Distress Signals 9 | . . . . . . . . . . . . . . . . . . . 3 1 . 5 . . Times Spotted 241 | . 10 20 . 8 4 1 . 6 18 5 5 . . 18 . 7 . 7 38 20 4 34 11 25 Peak Tracking Total 15 | . 3 6 . 3 4 1 . 3 5 5 4 . . 9 . 5 . 4 15 8 3 15 5 7 Tactical Retreats 32 | . . 1 . . 1 . . 2 5 1 1 . . 5 . 2 . 2 4 1 . 2 2 3 Traps | -11 -10 -10 -8 -6 -6 -6 -6 -5 -5 -5 -5 -5 -4 -4 -4 -4 -4 -3 -3 -3 -3 -2 -2 -2 ------- Run | Yrd Mat Sub Scr Fac Low Low Zio Pro Fac Upp Upp Zhi Pro Fac Upp Upp War Pro Res Arm Lab Res Qua Sec Traps Triggered 6 | . . 2 . 1 . . . . 2 . . . . 1 . . . . . . . . . . Indirectly . | . . . . . . . . . . . . . . . . . . . . . . . . . Trap Hack Attempts . | . . . . . . . . . . . . . . . . . . . . . . . . . Triggered . | . . . . . . . . . . . . . . . . . . . . . . . . . Disarmed . | . . . . . . . . . . . . . . . . . . . . . . . . . Reprogrammed . | . . . . . . . . . . . . . . . . . . . . . . . . . Reused . | . . . . . . . . . . . . . . . . . . . . . . . . . Traps Extracted . | . . . . . . . . . . . . . . . . . . . . . . . . . Installed . | . . . . . . . . . . . . . . . . . . . . . . . . . Triggered . | . . . . . . . . . . . . . . . . . . . . . . . . . Machines | -11 -10 -10 -8 -6 -6 -6 -6 -5 -5 -5 -5 -5 -4 -4 -4 -4 -4 -3 -3 -3 -3 -2 -2 -2 ---------- Run | Yrd Mat Sub Scr Fac Low Low Zio Pro Fac Upp Upp Zhi Pro Fac Upp Upp War Pro Res Arm Lab Res Qua Sec Machines Disabled 14 | . . 1 . . . . . . . . . . . 1 . . . . . 2 1 . 2 7 Max in Single Turn 1 | . . 1 . . . . . . . . . . . 1 . . . . . 1 1 . 1 1 Garrison Access 3 | . . . . . . . . . . . . . . 1 . . . . 1 . . 1 . . Machines Repaired . | . . . . . . . . . . . . . . . . . . . . . . . . . Machines Dismantled . | . . . . . . . . . . . . . . . . . . . . . . . . . Machines Sabotaged . | . . . . . . . . . . . . . . . . . . . . . . . . . Overloaded Fab Kills . | . . . . . . . . . . . . . . . . . . . . . . . . . Hacking | -11 -10 -10 -8 -6 -6 -6 -6 -5 -5 -5 -5 -5 -4 -4 -4 -4 -4 -3 -3 -3 -3 -2 -2 -2 --------- Run | Yrd Mat Sub Scr Fac Low Low Zio Pro Fac Upp Upp Zhi Pro Fac Upp Upp War Pro Res Arm Lab Res Qua Sec Machines Accessed 99 | . 4 2 4 2 2 2 . . 8 2 1 4 . 10 . . 14 . 9 4 1 13 10 7 Terminals 39 | . 3 . . 1 . . . . 2 . . . . 5 . . . . 7 2 . 4 8 7 Fabricators 6 | . . . . 1 . . . . . . . . . 1 . . . . 1 1 . 2 . . Repair Stations 4 | . . . . . . . . . . . . . . 1 . . . . . 1 . 1 1 . Recycling Units 11 | . 1 . . . . . . . 5 . . . . 2 . . . . . . . 3 . . Scanalyzers 2 | . . . . . . . . . . . . . . . . . . . . . . 1 1 . Garrison Access 5 | . . . . . . . . . 1 . . . . 1 . . . . 1 . . 2 . . Total Hacks 272 | . 13 4 17 5 2 7 . . 23 8 1 17 . 39 . . 31 . 23 8 5 35 23 11 Successful 203 | . 6 4 17 2 2 7 . . 12 8 1 17 . 23 . . 31 . 14 8 5 25 14 7 Failed 69 | . 7 . . 3 . . . . 11 . . . . 16 . . . . 9 . . 10 9 4 Catastrophic 7 | . . . . . . . . . 2 . . . . 2 . . . . 1 . . 1 1 . Database Lockouts . | . . . . . . . . . . . . . . . . . . . . . . . . . Manual 86 | . 12 . . 2 . . . . 9 . . . . 26 . . . . 9 3 1 16 6 2 Terminals 110 | . 10 . . 2 . . . . 7 . . . . 28 . . . . 20 5 . 12 15 11 Fabricators 15 | . . . . 3 . . . . . . . . . 3 . . . . 2 1 . 6 . . Repair Stations 6 | . . . . . . . . . . . . . . 1 . . . . . 2 . 2 1 . Recycling Units 28 | . 3 . . . . . . . 13 . . . . 5 . . . . . . . 7 . . Scanalyzers 9 | . . . . . . . . . . . . . . . . . . . . . . 2 7 . Garrison Access 12 | . . . . . . . . . 3 . . . . 2 . . . . 1 . . 6 . . Terminal Hacks 132 | . . 4 17 . 2 7 . . 2 8 1 17 . 10 . . 31 . 7 2 5 7 6 6 Record 61 | . . 3 9 . . 6 . . . 7 . 5 . . . . 23 . . . 5 . 3 . Part Schematic 4 | . . . . . . . . . . . . 4 . . . . . . . . . . . . Robot Analysis 10 | . . . 6 . . . . . . . . 4 . . . . . . . . . . . . Prototype ID Bank 13 | . . . . . . . . . 1 . . 4 . 2 . . 6 . . . . . . . Open Door 13 | . . . 1 . 2 1 . . . 1 1 . . . . . 2 . . . . 1 . 4 Branch Access Points 3 | . . . . . . . . . . . . . . 1 . . . . 1 . . 1 . . Emergency Access Points 1 | . . . . . . . . . . . . . . . . . . . . . . 1 . . Machine Index 2 | . . . . . . . . . . . . . . 1 . . . . . . . . 1 . Garrison Index 1 | . . . . . . . . . . . . . . 1 . . . . . . . . . . Alert Level 3 | . . . . . . . . . . . . . . 1 . . . . 1 . . . . 1 Locate Traps 2 | . . . . . . . . . . . . . . 1 . . . . 1 . . . . . Dispatch Records 1 | . . . . . . . . . . . . . . . . . . . . . . 1 . . Recall Investigation 1 | . . . . . . . . . . . . . . . . . . . 1 . . . . . Recall Reinforcements 1 | . . . . . . . . . . . . . . . . . . . 1 . . . . . Recall Assault 1 | . . . . . . . . . . . . . . . . . . . 1 . . . . . Registered Components 3 | . . . . . . . . . 1 . . . . 1 . . . . . . . 1 . . Registered Prototypes 2 | . . . . . . . . . . . . . . . . . . . 1 1 . . . . Zone Layout 7 | . . . . . . . . . . . . . . 2 . . . . . 1 . 2 2 . Proto ID Catalog 2 | . . 1 1 . . . . . . . . . . . . . . . . . . . . . Activate Exoskeleton 1 | . . . . . . . . . . . . . . . . . . . . . . . . 1 Fabricator Hacks 11 | . . . . 1 . . . . . . . . . 3 . . . . 1 1 . 5 . . Network Status 6 | . . . . 1 . . . . . . . . . 1 . . . . 1 1 . 2 . . Load Schematic 3 | . . . . . . . . . . . . . . 1 . . . . . . . 2 . . Build 2 | . . . . . . . . . . . . . . 1 . . . . . . . 1 . . Repair Station Hacks 6 | . . . . . . . . . . . . . . 1 . . . . . 2 . 2 1 . Scan Component 2 | . . . . . . . . . . . . . . . . . . . . 1 . 1 . . Repair 2 | . . . . . . . . . . . . . . . . . . . . 1 . 1 . . Refit 2 | . . . . . . . . . . . . . . 1 . . . . . . . . 1 . Recycling Unit Hacks 11 | . 1 . . . . . . . 6 . . . . 2 . . . . . . . 2 . . Report Inventory 10 | . 1 . . . . . . . 5 . . . . 2 . . . . . . . 2 . . Retrieve Components 1 | . . . . . . . . . 1 . . . . . . . . . . . . . . . Scanalyzer 5 | . . . . . . . . . . . . . . . . . . . . . . . 5 . Insert Component 1 | . . . . . . . . . . . . . . . . . . . . . . . 1 . Analyze 4 | . . . . . . . . . . . . . . . . . . . . . . . 4 . Garrison Access Hacks 3 | . . . . . . . . . . . . . . 1 . . . . 1 . . 1 . . Seal Access 3 | . . . . . . . . . . . . . . 1 . . . . 1 . . 1 . . Unauthorized Hacks 35 | . 5 . . 1 . . . . 4 . . . . 6 . . . . 5 3 . 8 2 1 Terminals 23 | . 4 . . 1 . . . . 1 . . . . 5 . . . . 5 3 . 1 2 1 Track 1 | . . . . . . . . . . . . . . . . . . . . . . 1 . . Assimilate 1 | . . . . . . . . . . . . . . . . . . . 1 . . . . . Botnet 15 | . 2 . . 1 . . . . 1 . . . . 2 . . . . 4 2 . . 2 1 Skim 6 | . 2 . . . . . . . . . . . . 3 . . . . . 1 . . . . Fabricators 1 | . . . . . . . . . . . . . . . . . . . . . . 1 . . Report 1 | . . . . . . . . . . . . . . . . . . . . . . 1 . . Repair Stations . | . . . . . . . . . . . . . . . . . . . . . . . . . Recycling Units 7 | . 1 . . . . . . . 3 . . . . 1 . . . . . . . 2 . . Tunnel 1 | . 1 . . . . . . . . . . . . . . . . . . . . . . . Fedlink 6 | . . . . . . . . . 3 . . . . 1 . . . . . . . 2 . . Scanalyzers 2 | . . . . . . . . . . . . . . . . . . . . . . 2 . . Researchers 1 | . . . . . . . . . . . . . . . . . . . . . . 1 . . Extract 1 | . . . . . . . . . . . . . . . . . . . . . . 1 . . Garrison Access 2 | . . . . . . . . . . . . . . . . . . . . . . 2 . . Redirect 1 | . . . . . . . . . . . . . . . . . . . . . . 1 . . Watchers 1 | . . . . . . . . . . . . . . . . . . . . . . 1 . . Data Cores Recovered 1 | . 1 . . . . . . . . . . . . . . . . . . . . . . . Used . | . . . . . . . . . . . . . . . . . . . . . . . . . Hacking Detections 56 | . 3 . . 2 . . . . 6 . . . . 9 . . . . 8 3 . 11 9 5 Full Trace Events 6 | . . . . . . . . . 1 . . . . 3 . . . . . . . 2 . . Feedback Events . | . . . . . . . . . . . . . . . . . . . . . . . . . Feedback Blocked 1 | . . . . . . . . . 1 . . . . . . . . . . . . . . . Robot Schematics Acquired 3 | . . . . . . . 3 . . . . . . . . . . . . . . . . . Robots Built . | . . . . . . . . . . . . . . . . . . . . . . . . . Authchips . | . . . . . . . . . . . . . . . . . . . . . . . . . Time . | . . . . . . . . . . . . . . . . . . . . . . . . . Total Robot Build Rating . | . . . . . . . . . . . . . . . . . . . . . . . . . Part Schematics Acquired 22 | . . . . . . . 14 . . . . 4 . . . . . . . . . 4 . . Parts Built 3 | . . . . . . . . . . . . . . 1 . . . . . . . 2 . . Authchips . | . . . . . . . . . . . . . . . . . . . . . . . . . Time 304 | . . . . . . . . . . . . . . 187 . . . . . . . 117 . . Total Part Build Rating 21 | . . . . . . . . . . . . . . 7 . . . . . . . 14 . . Parts Repaired 2 | . . . . . . . . . . . . . . . . . . . . 1 . 1 . . Time 61 | . . . . . . . . . . . . . . . . . . . . 25 . 36 . . Parts Recycled . | . . . . . . . . . . . . . . . . . . . . . . . . . Recycled Matter . | . . . . . . . . . . . . . . . . . . . . . . . . . Retrieved Matter . | . . . . . . . . . . . . . . . . . . . . . . . . . Retrieved Components 3 | . . . . . . . . . 3 . . . . . . . . . . . . . . . Parts Scanalyzed 1 | . . . . . . . . . . . . . . . . . . . . . . . 1 . Part Schematics Acquired . | . . . . . . . . . . . . . . . . . . . . . . . . . Parts Damaged . | . . . . . . . . . . . . . . . . . . . . . . . . . Bothacking | -11 -10 -10 -8 -6 -6 -6 -6 -5 -5 -5 -5 -5 -4 -4 -4 -4 -4 -3 -3 -3 -3 -2 -2 -2 ------------ Run | Yrd Mat Sub Scr Fac Low Low Zio Pro Fac Upp Upp Zhi Pro Fac Upp Upp War Pro Res Arm Lab Res Qua Sec Used RIF Installer . | . . . . . . . . . . . . . . . . . . . . . . . . . Robots Hacked . | . . . . . . . . . . . . . . . . . . . . . . . . . Non-combat . | . . . . . . . . . . . . . . . . . . . . . . . . . Combat . | . . . . . . . . . . . . . . . . . . . . . . . . . Robot Hacks Applied . | . . . . . . . . . . . . . . . . . . . . . . . . . Relay Couplers Released 3 | . . . . 3 . . . . . . . . . . . . . . . . . . . . Programmers 3 | . . . . 3 . . . . . . . . . . . . . . . . . . . . Fabnet Peak Effective % . | . . . . . . . . . . . . . . . . . . . . . . . . . Robots Rewired 6 | . . . . . . . . . . . . . . . . 1 . . . 4 . . . 1 Allies Hacked . | . . . . . . . . . . . . . . . . . . . . . . . . . Hacks Repelled . | . . . . . . . . . . . . . . . . . . . . . . . . . Allies | -11 -10 -10 -8 -6 -6 -6 -6 -5 -5 -5 -5 -5 -4 -4 -4 -4 -4 -3 -3 -3 -3 -2 -2 -2 -------- Run | Yrd Mat Sub Scr Fac Low Low Zio Pro Fac Upp Upp Zhi Pro Fac Upp Upp War Pro Res Arm Lab Res Qua Sec Total Allies 7 | . . . . . . . . . . . . . . . . 1 . . 1 4 . . . 1 Largest Group 4 | . . . . . . . . . . . . . . . . 1 1 1 1 4 . . . 1 Highest-Rated Group 192 | . . . . . . . . . . . . . . . . 10 13 13 45 192 . . . 64 Highest-Rated Ally 64 | . . . . . . . . . . . . . . . . 10 13 13 45 48 . . . 64 Total Orders . | . . . . . . . . . . . . . . . . . . . . . . . . . Ally Attacks 23 | . . . . . . . . . . . . . . . . . . . . 19 . . . 4 Total Damage 834 | . . . . . . . . . . . . . . . . . . . . 709 . . . 125 Kills 7 | . . . . . . . . . . . . . . . . . . . . 7 . . . . Allies Corrupted 1 | . . . . . . . . . . . . . . . . . . . . 1 . . . . Allies Melted . | . . . . . . . . . . . . . . . . . . . . . . . . . Intel | -11 -10 -10 -8 -6 -6 -6 -6 -5 -5 -5 -5 -5 -4 -4 -4 -4 -4 -3 -3 -3 -3 -2 -2 -2 ------- Run | Yrd Mat Sub Scr Fac Low Low Zio Pro Fac Upp Upp Zhi Pro Fac Upp Upp War Pro Res Arm Lab Res Qua Sec Active Infowar (turns) 12634 | . 342 3268 777 595 664 523 1299 365 636 228 178 71 76 483 162 106 302 102 340 537 205 832 314 229 Optics 4046 | . . . . . . . . . 477 228 178 71 76 483 162 106 302 102 340 526 205 512 49 229 Sensors 7225 | . . . . 586 664 523 1299 365 257 178 178 71 76 469 162 106 302 102 336 537 90 500 276 148 Structural 7145 | . 342 3268 777 593 280 . . . . . . . . . . . . . 115 527 12 688 314 229 Decoding 4636 | . . . . . . . . . 471 228 178 71 76 483 162 106 302 102 340 537 205 832 314 229 Cloaking 1335 | . . . . . . . . . . . . . . . . . . 89 219 147 205 447 102 126 Jamming 1768 | . . . . . . . . . 51 . . . . . . . . . 102 242 174 656 314 229 ECM 34 | . . . . . . . . . . . . . . . . . . . 4 30 . . . . Robot Analysis Total 10 | . . . 6 . . . . . . . . 4 . . . . . . . . . . . . Derelict Logs Recovered 17 | . . 3 5 . . 1 1 . . 3 1 . 1 . 1 1 . . . . . . . . Drone Launches . | . . . . . . . . . . . . . . . . . . . . . . . . . Drone Recoveries . | . . . . . . . . . . . . . . . . . . . . . . . . . Decoded 0b10 Intel 49 | . . . . . . . . . 7 . . . . 13 . . . . 5 10 . 6 5 3 Traps 26 | . . . . . . . . . 7 . . . . 8 . . . . . 4 . . 5 2 Emergency Access 21 | . . . . . . . . . . . . . . 5 . . . . 4 5 . 6 . 1 Exits 2 | . . . . . . . . . . . . . . . . . . . 1 1 . . . . Exploration | -11 -10 -10 -8 -6 -6 -6 -6 -5 -5 -5 -5 -5 -4 -4 -4 -4 -4 -3 -3 -3 -3 -2 -2 -2 ------------- Run | Yrd Mat Sub Scr Fac Low Low Zio Pro Fac Upp Upp Zhi Pro Fac Upp Upp War Pro Res Arm Lab Res Qua Sec Turns Passed 14929 | 81 558 3268 2448 595 664 523 1299 365 748 228 178 71 76 483 162 106 302 102 340 537 205 832 314 444 Spaces Moved 16426 | 48 281 1875 2026 537 642 552 1062 343 780 495 452 170 211 952 415 250 976 253 711 511 306 1002 583 993 Core 1065 | 5 . 337 414 . . . . . 5 17 . . . . . . . . . . . 252 35 . Treads 837 | 43 281 265 248 . . . . . . . . . . . . . . . . . . . . . Legs 4029 | . . . . 533 642 552 1062 343 474 . . . . . . . . . . . . . . 423 Wheels 2641 | . . 1273 1364 4 . . . . . . . . . . . . . . . . . . . . Hover 75 | . . . . . . . . . . . . . . . . . . . . 75 . . . . Flight 7657 | . . . . . . . . . 301 478 452 170 211 952 415 250 976 253 711 436 306 750 548 448 Fastest Speed 15 | 50 160 100 50 90 90 90 90 90 32 32 32 29 29 15 25 26 30 24 19 20 20 20 37 30 Average Speed 75 | 148 160 161 116 90 90 90 120 97 74 39 32 32 29 26 28 29 30 29 24 36 24 33 42 33 Slowest Speed 400 | 160 160 350 400 135 90 90 180 180 120 250 117 175 29 37 29 30 30 30 32 150 25 100 100 37 Overloaded Moves 112 | . . . . . . . . . . . . . . 14 . . . . 3 23 1 71 . . Propulsion Burnouts . | . . . . . . . . . . . . . . . . . . . . . . . . . Robots Hopped 52 | . . . . . . . . . 1 . . . . 2 . 2 1 . 8 2 . 20 10 6 Potential Cave-ins 6 | . . . . . . . . . . . . . . . . . . . . . . . . 6 Cave-ins Triggered 1 | . . . . . . . . . . . . . . . . . . . . . . . . 1 Teleports 7 | . . . . . . . . . . . . . . . . . . . . 1 . 1 1 4 Microwarps 12 | . . . . . . . . . . . . . . . . . . . . . . . . 12 Exploration Rate (%) 56 | 3 45 90 86 20 86 75 86 64 32 63 57 64 45 29 66 58 94 54 33 23 96 30 51 70 Regions Visited 24 Branch Regions 18 Pre-discovered Areas 14 | . 1 2 2 . . . 3 . 1 1 . 3 . . . 1 . . . . . . . . Known Exits Taken 20 | . . . . 1 1 1 1 1 1 1 1 1 1 1 1 1 1 1 1 1 1 1 1 . Unknown Exits Taken 4 | 1 1 1 1 . . . . . . . . . . . . . . . . . . . . . Scrap Searched 30 | . . 11 3 . 3 1 3 1 . 3 . . 1 . 3 . . 1 . . . . . . Spaces Dug 95 | . . 11 . 5 1 . . . 6 1 . . 2 18 3 . . . 10 10 . 13 4 11 Terrain Destroyed 213 | . . 129 . 5 1 . . . 6 1 . . 2 18 3 . . . 10 10 . 13 4 11 Melee 95 | . . 11 . 5 1 . . . 6 1 . . 2 18 3 . . . 10 10 . 13 4 11 Projectile . | . . . . . . . . . . . . . . . . . . . . . . . . . AOE 118 | . . 118 . . . . . . . . . . . . . . . . . . . . . . Terrain Rammed . | . . . . . . . . . . . . . . . . . . . . . . . . . Walls Destroyed . | . . . . . . . . . . . . . . . . . . . . . . . . . Machines Disabled . | . . . . . . . . . . . . . . . . . . . . . . . . . Actions | -11 -10 -10 -8 -6 -6 -6 -6 -5 -5 -5 -5 -5 -4 -4 -4 -4 -4 -3 -3 -3 -3 -2 -2 -2 --------- Run | Yrd Mat Sub Scr Fac Low Low Zio Pro Fac Upp Upp Zhi Pro Fac Upp Upp War Pro Res Arm Lab Res Qua Sec Total 18374 | 55 343 2007 2125 616 712 567 1085 362 904 522 472 184 221 1121 453 275 983 280 822 819 415 1427 623 981 Wait 1106 | . 28 13 . 30 49 9 5 3 39 8 10 . 8 112 36 21 5 24 66 223 38 363 7 9 Move 16198 | 47 280 1874 2025 536 641 551 1061 342 777 494 451 169 210 947 414 245 973 252 695 507 305 968 563 871 Hop 42 | . . . . . . . . . 1 . . . . 2 . 2 1 . 7 1 . 13 9 6 Pick Up 140 | 2 5 14 43 11 2 . 8 . 8 4 . 3 . 5 . . . 1 6 5 6 2 5 10 Fast Attach 100 | 6 2 4 6 . 2 . 1 . 11 1 2 3 . 5 . 1 2 . 4 10 11 12 7 10 Attach 76 | . . 6 4 7 . . 1 3 11 2 1 1 . 3 . . . . 8 3 5 7 4 10 Detach 42 | . 1 . 5 2 2 . . . 5 2 . 1 . . . . . . 1 1 4 7 3 8 Swap 73 | . . 14 . 4 . . 1 . 4 2 . 4 1 4 . . . 1 6 19 5 . 3 5 Drop 135 | . . 12 42 5 3 . 8 . 7 4 . 3 . 6 . . 2 1 2 8 13 5 3 11 Fire 65 | . 21 43 . . . . . . . . . . . . . . . . . . . . . 1 Melee 370 | . . 27 . 21 13 7 . 14 41 5 8 . 2 37 3 3 . . 27 31 28 50 19 34 Ram 1 | . . . . . . . . . . . . . . . . . . . . 1 . . . . Kick . | . . . . . . . . . . . . . . . . . . . . . . . . . Crush 6 | . 6 . . . . . . . . . . . . . . . . . . . . . . . Escape Stasis . | . . . . . . . . . . . . . . . . . . . . . . . . . Rewire 19 | . . . . . . . . . . . . . . . . 3 . . . 10 . . . 6 Trap . | . . . . . . . . . . . . . . . . . . . . . . . . . Miscellaneous 1 | . . . . . . . . . . . . . . . . . . 1 . . . . . . Route ------- -11/Scrapyard -10/Materials (discovered 2 exits: [*Mat] / *Sub) -10/Subcaves (discovered 4 exits: [*Mat x2] / *Scr x2) -8/Scraptown (discovered 2 exits: *Fac x2) -6/Factory -6/Lower Caves -6/Lower Caves (discovered 2 exits: Fac / *Zio) -6/Zion -5/Proximity Caves -5/Factory (discovered 4 exits: *Fac x3 / *Upp) -5/Upper Caves -5/Upper Caves (discovered 2 exits: *Fac / *Zhi) -5/Zhirov -4/Proximity Caves -4/Factory (discovered 5 exits: Res x3 / *Upp x2) -4/Upper Caves -4/Upper Caves -4/Warlord -3/Proximity Caves -3/Research (discovered 6 exits: *Res x3 / *Arm / Tes x2) -3/Armory (discovered 2 exits: Res / *Lab) -3/Lab -2/Research (discovered 3 exits: *Acc / *Qua x2) -2/Quarantine (discovered 3 exits: *Acc / *Sec / *Frg) -2/Section 7 History --------- Turn | Location | Event 58 | -11/Scrapyard | Discovered new exit (range 15) 82 | -11/Scrapyard | Entered Materials 83 | -10/Materials | Met a group of wandering Federalists 319 | -10/Materials | Build established: Mutant 343 | -10/Materials | Discovered new exit (range 15) 416 | -10/Materials | Discovered new exit (range 8) 640 | -10/Materials | Entered Subcaves 641 | -10/Subcaves | Continued accompanying wandering Federalists (3) 641 | -10/Subcaves | Approached by a straggling Scientist 675 | -10/Subcaves | Shifting Twisted Machinery released Slug Cannon 685 | -10/Subcaves | Shifting Twisted Machinery released Sub. Machine Gun 748 | -10/Subcaves | Shifting Twisted Machinery released Flamer 779 | -10/Subcaves | Discovered new exit (range 17) 791 | -10/Subcaves | Learned location of Zion (-6) 791 | -10/Subcaves | Met a Zionite searching for "candidates" 814 | -10/Subcaves | Shifting Twisted Machinery released Slug Cannon 899 | -10/Subcaves | Wandering Federalist uncovered a shortcut to Scraptown 918 | -10/Subcaves | Shifting Twisted Machinery released Mak. Axe 1088 | -10/Subcaves | Scientist uncovered a shortcut to Scraptown 1127 | -10/Subcaves | Disturbed a concealed Subdweller 1255 | -10/Subcaves | Visited Clippyterm 1259 | -10/Subcaves | Learned Factory stockpile data 1470 | -10/Subcaves | Learned Materials terminal intel 1649 | -10/Subcaves | Build established: Scavenger-Mutant 1884 | -10/Subcaves | Discovered new exit (range 6) 1911 | -10/Subcaves | A swath of the cavern ceiling suddenly collapsed 1952 | -10/Subcaves | Ambushed by Subdweller buried in earth 1954 | -10/Subcaves | Ambushed by Subdweller buried in earth 1957 | -10/Subcaves | Ambushed by Subdweller buried in earth 1961 | -10/Subcaves | Core integrity fell below 50% 1989 | -10/Subcaves | Lost 5 parts (1p2n2w) 2234 | -10/Subcaves | Build established: Mutant 3176 | -10/Subcaves | Shifting Twisted Machinery released Sub. Power Source 3413 | -10/Subcaves | Learned Materials terminal intel 3550 | -10/Subcaves | A Subdweller sparked back to life 3550 | -10/Subcaves | A Subdweller sparked back to life 3550 | -10/Subcaves | A Subdweller sparked back to life 3563 | -10/Subcaves | Found Prototype Leg 3617 | -10/Subcaves | Lost 3 parts (1p2w) 3790 | -10/Subcaves | Visited 4L-MR0's lab 3795 | -10/Subcaves | Identified Arachnoskeleton 3809 | -10/Subcaves | Found Powered Cannon 3908 | -10/Subcaves | Entered Scraptown 4064 | -8/Scraptown | Scanned Subdweller tech in exchange for log data 4067 | -8/Scraptown | Learned location of Testing (-3) 4068 | -8/Scraptown | Learned Research trap positions 4069 | -8/Scraptown | Learned location of 1 exit from Factory 4070 | -8/Scraptown | Learned location of Extension (-6) 4072 | -8/Scraptown | Learned location of 1 exit from Proximity Caves 4160 | -8/Scraptown | Discovered new exit (range 11) 4528 | -8/Scraptown | Visited Supply Room 4573 | -8/Scraptown | Visited Assassins FH 4585 | -8/Scraptown | Visited CR-KLE's Repair Center 4602 | -8/Scraptown | Visited Red Mages 4639 | -8/Scraptown | Visited TADAMA 4664 | -8/Scraptown | Visited Shadow of the Wyrm 4688 | -8/Scraptown | Visited The Evicted 4704 | -8/Scraptown | Visited UFD Registry 4704 | -8/Scraptown | Registered with UFD as "Novatorch" 4728 | -8/Scraptown | Visited Analyses Database 4752 | -8/Scraptown | Visited Derelict Rescue Squad 4758 | -8/Scraptown | Found DRS Beacon 5041 | -8/Scraptown | Delivered Scrap Shield to a Scientist 5093 | -8/Scraptown | Visited Observation Area 5119 | -8/Scraptown | Visited Infowarlord's Domain 5135 | -8/Scraptown | Visited Scrap Suit Storage 5149 | -8/Scraptown | Found Scrap Suit 5162 | -8/Scraptown | Visited Science Guys 5199 | -8/Scraptown | Visited Sword Containment 5221 | -8/Scraptown | Visited Junk Repository 5287 | -8/Scraptown | Visited Curators Association 6126 | -8/Scraptown | Found Exp. Sensor Array 6267 | -8/Scraptown | Met Optimus 6267 | -8/Scraptown | Accepted into 0bPrime 6353 | -8/Scraptown | Discovered new exit (range 3) 6356 | -8/Scraptown | Entered Factory 6356 | -6/Factory | Evolved 8 slots: Power x1, Propulsion x1, Utility x6 6357 | -6/Factory | Identified exit to Lower Caves 6364 | -6/Factory | Attached Arachnoskeleton, gained temporary slots: Propulsion x3 6670 | -6/Factory | Build established: Assassin 6951 | -6/Factory | Entered Lower Caves 6953 | -6/Lower Caves | UFD Scientist delivered a prototype 6955 | -6/Lower Caves | Found Prototype Protection 6955 | -6/Lower Caves | Identified Enh. Scrap Shield 7043 | -6/Lower Caves | Encountered a Warlord checkpoint 7375 | -6/Lower Caves | Entered an active Warlord outpost 7451 | -6/Lower Caves | Discovered new exit (range 10) 7463 | -6/Lower Caves | Identified exit to Lower Caves 7543 | -6/Lower Caves | Build established: Mutant 7615 | -6/Lower Caves | Entered another Lower Caves area 7729 | -6/Lower Caves | Encountered a Warlord checkpoint 8077 | -6/Lower Caves | Entered an active Warlord outpost 8088 | -6/Lower Caves | Identified exit to Factory 8088 | -6/Lower Caves | Learned Extension stockpile data 8088 | -6/Lower Caves | Learned Research terminal intel 8088 | -6/Lower Caves | Learned Extension terminal intel 8127 | -6/Lower Caves | Discovered new exit (range 6) 8131 | -6/Lower Caves | Identified exit to Zion 8138 | -6/Lower Caves | Entered Zion 8211 | -6/Zion | Discovered new exit (range 15) 8222 | -6/Zion | Identified exit to Proximity Caves 8255 | -6/Zion | System corruption cleaned by Quarantine Array 8409 | -6/Zion | Learned 8 Factory zone layouts 8441 | -6/Zion | Given the Hacking Drone Bay 8443 | -6/Zion | Found Prototype Device 8443 | -6/Zion | Identified Hacking Drone Bay 8468 | -6/Zion | Given A8's code to call for help 8784 | -6/Zion | Found Spectral Analyzer 8812 | -6/Zion | Learned Factory emergency access door positions 8861 | -6/Zion | Found Prototype Hackware 8864 | -6/Zion | Found Prototype Processor 8889 | -6/Zion | Found Prototype Processor 8892 | -6/Zion | Found Prototype Processor 9021 | -6/Zion | Turned away by Imprinter 9437 | -6/Zion | Entered Proximity Caves 9482 | -5/Proximity Caves | Attracted the attention of an 0b10 checkpoint 9802 | -5/Proximity Caves | Entered Factory 9802 | -5/Factory | Evolved 2 slots: Utility x2 9803 | -5/Factory | Identified exit to Factory 9804 | -5/Factory | Identified exit to Upper Caves 9806 | -5/Factory | Identified Exp. System Shield 9807 | -5/Factory | Identified Exp. Core Analyzer 9856 | -5/Factory | Loaded intel: 8 recycling unit locations 9909 | -5/Factory | Learned location of Protoforge (-2) 10074 | -5/Factory | Identified Exp. Melee Analysis Suite 10076 | -5/Factory | Identified Exp. Target Analyzer 10083 | -5/Factory | Spotted B-75 Beast 10100 | -5/Factory | Build established: Hacker-Mutant 10304 | -5/Factory | Garrison activated, responded to threat 10313 | -5/Factory | Lost 4 parts (2p1n1u) 10356 | -5/Factory | Lost 4 parts (1p1n2u) 10550 | -5/Factory | Entered Upper Caves 10559 | -5/Upper Caves | Entered an active Warlord outpost 10559 | -5/Upper Caves | Learned Factory terminal intel 10560 | -5/Upper Caves | Learned location of 1 exit from Research 10560 | -5/Upper Caves | Learned Research trap positions 10560 | -5/Upper Caves | Learned Extension emergency access door positions 10579 | -5/Upper Caves | Learned 12 Factory zone layouts 10712 | -5/Upper Caves | Discovered new exit (range 14) 10776 | -5/Upper Caves | Identified exit to Upper Caves 10778 | -5/Upper Caves | Entered another Upper Caves area 10781 | -5/Upper Caves | Discovered exit to Factory (range 7) 10912 | -5/Upper Caves | Lost 3 parts (2n1u) 10921 | -5/Upper Caves | Spotted B-75 Beast 10949 | -5/Upper Caves | Discovered new exit (range 6) 10950 | -5/Upper Caves | Identified exit to Zhirov 10956 | -5/Upper Caves | Entered Zhirov 10956 | -5/Zhirov | Discovered new exit (range 3) 10962 | -5/Zhirov | Met Zhirov 10975 | -5/Zhirov | Learned location of Quarantine (-2) 10975 | -5/Zhirov | Learned location of Command (-1) 10977 | -5/Zhirov | Zhirov requested help retrieving the SGEMP Prototype 10982 | -5/Zhirov | Found Alien Artifact 10982 | -5/Zhirov | Identified Integrated Dissipator 10982 | -5/Zhirov | Installed Integrated Dissipator, increased core heat dissipation (+20) 10988 | -5/Zhirov | Found Alien Artifact 11027 | -5/Zhirov | Identified exit to Proximity Caves 11027 | -5/Zhirov | Entered Proximity Caves 11091 | -4/Proximity Caves | Learned Research garrison access intel 11095 | -4/Proximity Caves | Build established: Hacker-Scout 11103 | -4/Proximity Caves | Entered Factory 11103 | -4/Factory | Evolved 2 slots: Propulsion x2 11104 | -4/Factory | Identified exit to Research 11105 | -4/Factory | Loaded intel: 26 terminal locations 11242 | -4/Factory | Identified exit to Upper Caves 11392 | -4/Factory | Spotted B-86 Titan 11491 | -4/Factory | Fabricated Exp. Optical Array? 11501 | -4/Factory | Found Unknown Device 11501 | -4/Factory | Identified Heavy Servo Lattice 11552 | -4/Factory | Loaded intel: 8 recycling unit locations 11586 | -4/Factory | Entered Upper Caves 11622 | -4/Upper Caves | Learned location of 1 exit from Research 11726 | -4/Upper Caves | Discovered new exit (range 10) 11727 | -4/Upper Caves | Encountered a Warlord checkpoint 11729 | -4/Upper Caves | Identified exit to Upper Caves 11748 | -4/Upper Caves | Entered another Upper Caves area 11850 | -4/Upper Caves | Discovered new exit (range 5) 11851 | -4/Upper Caves | Identified exit to Warlord 11854 | -4/Upper Caves | Entered Warlord 11854 | -4/Warlord | Accompanied by 1 ally 11867 | -4/Warlord | System corruption cleaned by Quarantine Array 11881 | -4/Warlord | Found Prototype Special Weapon 11881 | -4/Warlord | Identified RU-N14's Throwing Claymores v3 11925 | -4/Warlord | Rebuked by Warlord 11943 | -4/Warlord | Warlord's base attacked by MAIN.C 11999 | -4/Warlord | Found Prototype Energy Cannon 11999 | -4/Warlord | Identified Vortex Driver 12134 | -4/Warlord | Learned Quarantine emergency access door positions 12134 | -4/Warlord | Learned Armory stockpile data 12135 | -4/Warlord | Learned Factory fabricator intel 12135 | -4/Warlord | Learned Armory garrison access intel 12135 | -4/Warlord | Learned Research recycling unit intel 12144 | -4/Warlord | Opened side exit 12150 | -4/Warlord | Discovered new exit (range 9) 12152 | -4/Warlord | Identified exit to Proximity Caves 12156 | -4/Warlord | Entered Proximity Caves 12156 | -3/Proximity Caves | Accompanied by 1 ally 12168 | -3/Proximity Caves | Spotted B-86 Titan 12173 | -3/Proximity Caves | Activated DRS Beacon 12258 | -3/Proximity Caves | Entered Research 12258 | -3/Research | Evolved 2 slots: Utility x2 12259 | -3/Research | Identified exit to Research 12260 | -3/Research | Loaded intel: 82 trap records 12261 | -3/Research | Loaded intel: 21 terminal locations 12262 | -3/Research | Loaded intel: 5 recycling unit locations 12263 | -3/Research | Loaded intel: 3 garrison access locations 12459 | -3/Research | Build established: Hacker-Ninja 12498 | -3/Research | Forged Quantum Companion 12538 | -3/Research | Lost 5 parts (1p1n3u) 12541 | -3/Research | Identified exit to Armory 12541 | -3/Research | Identified exit to Testing 12550 | -3/Research | Spotted B-86 Titan 12598 | -3/Research | Entered Armory 12645 | -3/Armory | Lost 5 parts (3n2u) 12675 | -3/Armory | Found Prototype Hackware 12675 | -3/Armory | Identified Exp. Hacking Suite 12973 | -3/Armory | Repaired Imp. Surge Thruster 13071 | -3/Armory | Identified Transdimensional Reconstructor 13071 | -3/Armory | Warped through subspace to slip node 13071 | -3/Armory | Discovered new exit (range 1) 13071 | -3/Armory | Identified exit to Lab 13118 | -3/Armory | Found Prototype Device 13118 | -3/Armory | Identified Exp. Thermal Shield 13123 | -3/Armory | Found Prototype Device 13123 | -3/Armory | Identified Exp. EM Disruption Field 13135 | -3/Armory | Entered Lab 13135 | -3/Lab | Discovered exit to Research (range 9) 13152 | -3/Lab | Unable to decrypt terminal 13152 | -3/Lab | Opened the door to a hidden lab 13153 | -3/Lab | Gained access to the hidden lab's interior 13162 | -3/Lab | Found Alien Artifact 13164 | -3/Lab | Detected by scanners 13167 | -3/Lab | Found Transdimensional Reconstructor 13173 | -3/Lab | Found Alien Artifact 13173 | -3/Lab | Identified Integrated Reactor 13173 | -3/Lab | Installed Integrated Reactor, increased core energy generation (+10) 13175 | -3/Lab | Disabled Active System Cloaker 13176 | -3/Lab | Confronted by A5 13199 | -3/Lab | Destroyed A5 13202 | -3/Lab | MAIN.C forces arrive to investigate 13254 | -3/Lab | Found Alien Artifact 13254 | -3/Lab | Identified Core Expander 13254 | -3/Lab | Installed Core Expander, added new Weapon slot 13268 | -3/Lab | Unable to decrypt terminal 13277 | -3/Lab | Unable to decrypt terminal 13280 | -3/Lab | Found Prototype Special Weapon 13280 | -3/Lab | Identified Gui. Remote Datajack 13289 | -3/Lab | Found Prototype Protection 13289 | -3/Lab | Identified Hvy. Regenerative Plating 13321 | -3/Lab | Found Prototype Hackware 13321 | -3/Lab | Identified Deep Network Scanner 13340 | -3/Lab | Entered Research 13340 | -2/Research | Evolved 2 slots: Propulsion x1, Utility x1 13341 | -2/Research | Identified exit to Quarantine 13342 | -2/Research | Loaded intel: 75 trap records 13449 | -2/Research | Repaired Centrium Medium Armor Plating 13523 | -2/Research | Loaded intel: 5 recycling unit locations 13883 | -2/Research | Lost 7 parts (1p3n3u) 13921 | -2/Research | Fabricated Impulse Thruster (x2) 13946 | -2/Research | Intercept squad dispatched 13956 | -2/Research | Spotted Tracker 13958 | -2/Research | Spotted Tracker 13959 | -2/Research | Warped through subspace 14001 | -2/Research | Lost 7 parts (6n1u) 14028 | -2/Research | Discovered new exit (range 15) 14036 | -2/Research | Identified exit to Access 14172 | -2/Research | Entered Quarantine 14220 | -2/Quarantine | Core integrity fell below 50% 14310 | -2/Quarantine | Found Exp. Core Analyzer 14313 | -2/Quarantine | Intercept squad dispatched 14336 | -2/Quarantine | Spotted Tracker 14337 | -2/Quarantine | Spotted Tracker 14347 | -2/Quarantine | Destroyed Tracker 14348 | -2/Quarantine | Destroyed Tracker 14377 | -2/Quarantine | Lost 3 parts (1p1n1u) 14388 | -2/Quarantine | Spotted Combat Programmer 14391 | -2/Quarantine | Found Alien Artifact 14391 | -2/Quarantine | Spotted Combat Programmer 14393 | -2/Quarantine | Found Alien Artifact 14393 | -2/Quarantine | Identified Hpw. Transdimensional Reconstructor (x2) 14393 | -2/Quarantine | Warped through subspace 14396 | -2/Quarantine | Discovered exit to Access (range 10) 14445 | -2/Quarantine | Spotted Fortress 14482 | -2/Quarantine | Discovered new exit (range 6) 14482 | -2/Quarantine | Discovered new exit (range 6) 14484 | -2/Quarantine | Identified exit to Section 7 14485 | -2/Quarantine | Identified exit to Protoforge 14486 | -2/Quarantine | Entered Section 7 14520 | -2/Section 7 | Found Integrated Reactor 14521 | -2/Section 7 | Installed Integrated Reactor, increased core energy generation (+10) 14563 | -2/Section 7 | Discovered exit to Access (range 13) 14627 | -2/Section 7 | Found Alien Artifact 14627 | -2/Section 7 | Identified Integrity Redistributor 14627 | -2/Section 7 | Used Integrity Redistributor, redistributed integrity to core (+120) 14643 | -2/Section 7 | Found Alien Artifact 14643 | -2/Section 7 | Identified Microwarp Drive 14654 | -2/Section 7 | Spotted Executioner 14655 | -2/Section 7 | Spotted Executioner 14679 | -2/Section 7 | Identified Core Reset Matrix 14679 | -2/Section 7 | Used Core Reset Matrix 14682 | -2/Section 7 | Found Terrabomb 14683 | -2/Section 7 | Detected hypermatrix surge 14683 | -2/Section 7 | Sensed 15 artifacts in vicinity 14703 | -2/Section 7 | Spotted Executioner 14703 | -2/Section 7 | Spotted Executioner 14715 | -2/Section 7 | Integrated with Sigix Exoskeleton 14755 | -2/Section 7 | Spotted B-99 Colossus 14769 | -2/Section 7 | Found Integrated Dissipator 14769 | -2/Section 7 | Installed Integrated Dissipator, increased core heat dissipation (+20) 14781 | -2/Section 7 | Intercept squad dispatched 14782 | -2/Section 7 | Found LRC Matter Compressor 14782 | -2/Section 7 | Installed LRC Matter Compressor, increased matter storage capacity (+125) 14802 | -2/Section 7 | Spotted Tracker 14805 | -2/Section 7 | Spotted Tracker 14834 | -2/Section 7 | Core integrity fell below 20% 14839 | -2/Section 7 | Sigix Exoskeleton integrity reduced to 80% 14844 | -2/Section 7 | Spotted Combat Programmer 14845 | -2/Section 7 | Spotted Combat Programmer 14857 | -2/Section 7 | Warped through subspace 14879 | -2/Section 7 | Spotted S7 Guard 14888 | -2/Section 7 | Found Navigation Efficiency Matrix 14888 | -2/Section 7 | Installed Navigation Efficiency Matrix, process failed with unexpected side effects 14923 | -2/Section 7 | Used Terrabomb 14931 | -2/Section 7 | Crushed by falling debris 14931 | -2/Section 7 | Smashed by cave-in Last Messages --------------- 14882_ Slug penetrates Door. 14884_ Suspension Chamber breached. 14888_ Acquired Navigation Efficiency Matrix. 14888_ Navigation Efficiency Matrix installed, partial failure due to system anomalies. The surroundings shift and blur. 14897_ Navigation matrix triggers involuntary quantum shift. 14907_ ALERT: Assault forces dispatched. 14908_ Navigation matrix triggers involuntary quantum shift. 14909_ Acquired Adv. Melee Analysis Suite. 14919_ Penetrated by Slug. 14923_ Terrabomb activated. Quantum Companion: "That Hunter is looking suspicious over there!" Quantum Companion releases a shadow of itself that zips off towards H-88 Terminator. 14924_ H-88 Terminator destroyed. 14924_ Slug penetrates Quantum Generator. 14925_ Navigation matrix triggers involuntary quantum shift. 14931_ The unstable cave ceiling collapses. 14931_ Crushed by falling debris. Map ----- +----------------------------------------------------+ | ?????????????????????????????????????????????????? | | ?????????????????????????????????????????????????? | | ?????????????????????????????????????????????????? | | ?????????????????????????????????????????????????? | | ?????????????????????????????????????????????????? | | ?????????????????????????????????????????????????? | | ?????????????????????????????????????????????????? | | ?????????????????????????#? ?????????????????????? | | ????????????????????###### ######????????????????? | | ?????????????????] ]### ####### ?????????????? | | ????????????????# #% ##### ????????????? | | ??????????????### # ##########??????????? | | ?????????????#### ! + ?????????? | | ????????????##### # hH ### ????????? | | ???????????###### # ### ???????? | | ???????????############## #### ???????? | | ??????????###### # h#### #######??????? | | ????????? # """ # #### ########?????? | | ????????? ] # """ + #### ########?????? | | ????????? # """ # #### #########????? | | ????????"""""" # """ ## "#### #########????? | | ????????"""""" # """ ## ##### CCCR + ????? | | ????????"""""" #] """ ## #####+##+###### ???? | | ???????? # """ ## ## ; ; " ???? | | ???????? ! # ;# ;;;; " " ???? | | ???????#+########Y#######X + " " ???? | | ???????? ########### ; ;;;; " " ??? | | ???????? ########## ; ; ; ; " ?? | | ???????? ######## ; ; ; ; " ? | | ???????? ######## ; ; ;;;;;;;; """"""""+ | | ???????? #######;;;;;;; ; " | | ????????? ; " | | ????????? ######;;;;;;;;;; " | | ???????? ###### """"""""""+ | | ????????? ##### " | | ????????? ##### ;""" "S "" | | ????????? #### ; "" """ "" | | ????????? #### """" "" "" | | ????????? #### ;;" ""T ! "" | | ?????????? #### ;;"" """"""" [%= "" | | ?????????? #### " Y " "" [ "" | | ?????????? #### " """ """" "" | | ?????????? ### " """ " " | | ?????????? ####""""""""""""" """ " " | | ????????? " """ " " | | ?????????? !" """ " " | | ??????????]! " """ " """"""" """ | | ????????? ]! """"""" " """ " """ | | ?????????? """"""" " " | | ?????????? """"""" " """" | +----------------------------------------------------+ Best States ------------- Heat Dissipation 164 Energy Generation 90 Energy Capacity 820 Matter Stores 300 Matter Capacity 425 Sight Range 24 Robot Scan Range 20 Terrain Scan Density 10 ECM Strength 2 Jamming Range 16 Cloak Strength 4 Power Amplification 30 Additional Mass Support 20 Armor Coverage 825 Resistance: KI 50 Resistance: TH 50 Resistance: EX 50 Resistance: EM 50 Resistance: I 50 Resistance: S 50 Resistance: P 50 Core Shielding 40 Propulsion Shielding 66 Weapon Shielding 15 Melee Speed Boost 40 Phase Shifting 5 Evasion (%) 75 Melee Accuracy 21 Target Analysis 10 Core Analysis 8 Recoil Reduction 2 Offensive Hacking 55 Defensive Hacking 16 Item Schematics ----------------- None Robot Schematics ------------------ None Fabricated ------------ Exp. Optical Array | x1 | -4/Factory Impulse Thruster | x2 | -2/Research Repaired ---------- Imp. Surge Thruster | 3% | -3/Armory Centrium Medium Armor Plating | 35% | -2/Research Alien Tech Used ----------------- Integrated Dissipator Transdimensional Reconstructor Integrated Reactor Core Expander High-powered Transdimensional Reconstructor Integrity Redistributor Microwarp Drive Core Reset Matrix Sigix Exoskeleton Sigix Sheargun LRC Matter Compressor Navigation Efficiency Matrix Terrabomb Achievements -------------- More Power To You Turtlemind Challenges ------------ None Game ------ Seed DefenseMicrowarpPerforator Manual? 0 Play Time 03:53:37 Cumulative 145.5 hours Start 2025.07.07 @ 16:21:05 End 2025.07.07 @ 22:22:13 Sessions 1 Manual Loads 0 Difficulty Rogue Special Mode None Game No. 156 Rogue 156 Adventurer 0 Explorer 0 Win Type - Total 3 Types 1/0/0/1/0/0/0/0/0/1 Lore% 64 Gallery% 60 Achievement% 53 Wizard Run 0 Options --------- Layout 1 ASCII 0 Keyboard 1 Movement Numpad Keybinds 0 Fullscreen 1 Font 32/SmallcapsGlow Map View 77x35 Zoom Use 0% Tactical HUD 1 Map Filters NONE Filters NONE Steam 1 RUN: 614d14fa-79a2-4f68-ab43-f90be54a6fe3